bitfinex-derivatives/quotes_ETHF0:USTF0_20260222
["timestamp","ask_amount","ask_price","bid_price","bid_amount"]
[1771743104881,1.43030687,1975.7,1975.2,1.41979113]
[1771743105180,0.49696109,1975.6,1975.2,1.41979113]
[1771743105383,1.43030687,1975.7,1975.2,1.41979113]
[1771743105578,0.49687162,1975.6,1975.2,1.41979113]
[1771743105877,1.43030687,1975.7,1975.2,1.41979113]
[1771743106079,0.49687162,1975.6,1975.2,1.41979113]
[1771743106280,1.43030687,1975.7,1975.2,1.41979113]
[1771743106480,0.49680369,1975.6,1975.2,1.41979113]
[1771743106680,1.43030687,1975.7,1975.2,1.41979113]
[1771743106880,0.49680369,1975.6,1975.2,1.41979113]
[1771743107084,1.43030687,1975.7,1975.2,1.41979113]
[1771743107280,0.49680369,1975.6,1975.2,1.41979113]
[1771743107480,1.43030687,1975.7,1975.2,1.41979113]
[1771743107681,0.49674781,1975.6,1975.2,1.41979113]
[1771743107982,1.43030687,1975.7,1975.2,1.41979113]
[1771743108181,0.49674781,1975.6,1975.2,1.41979113]
[1771743108381,1.43030687,1975.7,1975.2,1.41979113]
[1771743108582,0.49669996,1975.6,1975.2,1.41979113]
[1771743108878,1.43030687,1975.7,1975.2,1.41979113]
[1771743109180,0.49670001,1975.6,1975.2,1.41979113]
[1771743109379,1.43030687,1975.7,1975.2,1.41979113]
[1771743109583,0.49665908,1975.6,1975.2,1.41979113]
[1771743109775,1.43030687,1975.7,1975.2,1.41979113]
[1771743110080,0.49665904,1975.6,1975.2,1.41979113]
[1771743110278,1.43030687,1975.7,1975.2,1.41979113]
[1771743110477,0.49662297,1975.6,1975.2,1.41979113]
[1771743110777,1.43030687,1975.7,1975.2,1.41979113]
[1771743110978,0.49662297,1975.6,1975.2,1.41979113]
[1771743111179,1.43030687,1975.7,1975.2,1.41979113]
[1771743111381,0.49659219,1975.6,1975.2,1.41979113]
[1771743111581,1.43030687,1975.7,1975.2,1.41979113]
[1771743111878,0.49659215,1975.6,1975.2,1.41979113]
[1771743112079,1.43030687,1975.7,1975.2,1.41979113]
[1771743112280,0.49659219,1975.6,1975.2,1.41979113]
[1771743112480,1.43030687,1975.7,1975.2,1.41979113]
[1771743112683,0.49656529,1975.6,1975.2,1.41979113]
[1771743112883,1.43030687,1975.7,1975.2,1.41979113]
[1771743113081,0.49656524,1975.6,1975.2,1.41979113]
[1771743113284,1.43030687,1975.7,1975.2,1.41979113]
[1771743115688,0.49650911,1975.6,1975.2,1.41979113]
[1771743115887,1.43030687,1975.7,1975.2,1.41979113]
[1771743116085,0.49650986,1975.6,1975.2,1.41979113]
[1771743116289,1.43030687,1975.7,1975.2,1.41979113]
[1771743116590,0.49650343,1975.6,1975.2,1.41979113]
[1771743116788,1.43030687,1975.7,1975.2,1.41979113]
[1771743116986,0.49650343,1975.6,1975.2,1.41979113]
[1771743117190,1.43030687,1975.7,1975.2,1.41979113]
[1771743117390,0.49649998,1975.6,1975.2,1.41979113]
[1771743117690,1.43030687,1975.7,1975.2,1.41979113]
[1771743117891,0.4964999,1975.6,1975.2,1.41979113]
[1771743118191,1.43030687,1975.7,1975.2,1.41979113]
[1771743118389,0.49650052,1975.6,1975.2,1.41979113]
[1771743118689,1.43030687,1975.7,1975.2,1.41979113]
[1771743118990,0.49650053,1975.6,1975.2,1.41979113]
[1771743119287,1.43030687,1975.7,1975.2,1.41979113]
[1771743119490,0.49650371,1975.6,1975.2,1.41979113]
[1771743119692,1.43030687,1975.7,1975.2,1.41979113]
[1771743119893,0.49650371,1975.6,1975.2,1.41979113]
[1771743120094,1.43030687,1975.7,1975.2,1.41979113]
[1771743120294,0.49650367,1975.6,1975.2,1.41979113]
[1771743120494,1.43030687,1975.7,1975.2,1.41979113]
[1771743120698,0.49650552,1975.6,1975.2,1.41979113]
[1771743120895,1.43030687,1975.7,1975.2,1.41979113]
[1771743121097,0.00482187,1975.7,1975.2,1.41979113]
[1771743121398,0.49651449,1975.6,1975.2,1.41979113]
[1771743121599,0.00482187,1975.7,1975.2,1.41979113]
[1771743121798,0.49651453,1975.6,1975.2,1.41979113]
[1771743122000,0.00482187,1975.7,1975.2,1.41979113]
[1771743122200,0.49651453,1975.6,1975.2,1.41979113]
[1771743122501,0.00482187,1975.7,1975.2,1.41979113]
[1771743122700,0.49652747,1975.6,1975.2,1.41979113]
[1771743122999,0.00482187,1975.7,1975.2,1.41979113]
[1771743123298,0.49652747,1975.6,1975.2,1.41979113]
[1771743123499,0.00482187,1975.7,1975.2,1.41979113]
[1771743123700,0.49654237,1975.6,1975.2,1.41979113]
[1771743123897,1.43030687,1975.7,1975.2,1.41979113]
[1771743124098,0.49654235,1975.6,1975.2,1.41979113]
[1771743124299,1.43030687,1975.7,1975.2,1.41979113]
[1771743124598,0.49644207,1975.6,1975.2,1.41979113]
[1771743124799,0.00482187,1975.7,1975.2,1.41979113]
[1771743124999,1.425485,1975.9,1975.3,1.41979113]
[1771743125199,1.92197026,1975.8,1975.3,1.41979113]
[1771743125400,1.425485,1975.8,1975.3,1.41979113]
[1771743126004,1.43014826,1975.8,1975.3,1.41979113]
[1771743128805,0.00466326,1975.8,1975.3,1.41979113]
[1771743131206,0.00466326,1975.8,1975.4,1.32500517]
[1771743131610,1e-08,1975.8,1975.4,1.32500517]
[1771743132010,1e-08,1975.8,1975.4,2.47311599]
[1771743132212,1e-08,1975.8,1975.5,1.36481749]
[1771743136611,1.39035337,1976.4,1976.1,1.36481749]
[1771743136817,0.49665614,1976.3,1976.0,1.36481749]
[1771743137008,0.49665614,1976.2,1976.0,1.36481749]
[1771743137315,1.39035337,1976.3,1976.0,1.36481749]
[1771743137514,1.39482757,1976.3,1976.0,1.36481749]
[1771743143815,1.39035337,1976.4,1976.0,1.36481749]
[1771743144821,1.39604231,1976.4,1976.0,1.36481749]
[1771743146623,1.88607508,1976.3,1976.0,1.36481749]
[1771743146819,1.39035337,1976.3,1976.0,1.36481749]
[1771743156430,1.39604231,1976.4,1976.0,1.36481749]
[1771743156631,0.49623441,1976.3,1976.0,1.36481749]
[1771743156930,1.39604231,1976.4,1976.0,1.36481749]
[1771743157132,0.49623398,1976.3,1976.0,1.36481749]
[1771743157431,1.39604231,1976.4,1976.0,1.36481749]
[1771743157630,0.49626639,1976.3,1976.0,1.36481749]
[1771743157821,1.39604231,1976.4,1976.0,1.36481749]
[1771743158021,0.49626639,1976.3,1976.0,1.36481749]
[1771743158221,1.39604231,1976.4,1976.0,1.36481749]
[1771743158421,0.4963091,1976.3,1976.0,1.36481749]
[1771743158622,1.39604231,1976.4,1976.0,1.36481749]
[1771743158823,0.49630915,1976.3,1976.0,1.36481749]
[1771743159030,1.39604231,1976.4,1976.0,1.36481749]
[1771743159231,0.49627388,1976.3,1976.0,1.36481749]
[1771743159534,1.39604231,1976.4,1976.0,1.36481749]
[1771743159730,0.49629894,1976.3,1976.0,1.36481749]
[1771743159931,1.39604231,1976.4,1976.0,1.36481749]
[1771743160130,0.49605456,1976.3,1976.0,1.36481749]
[1771743160330,1.39604231,1976.4,1976.0,1.36481749]
[1771743160530,0.49611647,1976.3,1976.0,1.36481749]
[1771743160829,1.39604231,1976.4,1976.0,1.36481749]
[1771743161031,0.49611664,1976.3,1976.0,1.36481749]
[1771743161232,1.39604231,1976.4,1976.0,1.36481749]
[1771743161432,0.49619235,1976.3,1976.0,1.36481749]
[1771743161635,1.39604231,1976.4,1976.0,1.36481749]
[1771743161835,0.49619225,1976.3,1976.0,1.36481749]
[1771743162033,1.39604231,1976.4,1976.0,1.36481749]
[1771743162235,0.49619214,1976.3,1976.0,1.36481749]
[1771743162435,1.39604231,1976.4,1976.0,1.36481749]
[1771743162635,0.49628399,1976.3,1976.0,1.36481749]
[1771743162934,1.39604231,1976.4,1976.0,1.36481749]
[1771743163129,0.49628399,1976.3,1976.0,1.36481749]
[1771743163332,1.39604231,1976.4,1976.0,1.36481749]
[1771743163530,0.49640164,1976.3,1976.0,1.36481749]
[1771743163728,1.39604231,1976.4,1976.0,1.36481749]
[1771743163928,0.4964016,1976.3,1976.0,1.36481749]
[1771743164128,1.39604231,1976.4,1976.0,1.36481749]
[1771743164332,0.4964016,1976.3,1976.0,1.36481749]
[1771743164633,0.4964016,1976.2,1976.0,1.36481749]
[1771743164834,1.39604231,1976.4,1976.0,1.36481749]
[1771743173638,0.00568894,1976.4,1976.0,1.36481749]
[1771743174447,1.33745783,1976.4,1976.0,1.36481749]
[1771743175548,0.00568894,1976.4,1976.0,1.36481749]
[1771743176848,0.49341854,1976.3,1976.0,1.36481749]
[1771743177049,0.00568894,1976.4,1976.0,1.36481749]
[1771743177645,1.33176889,1976.5,1976.0,1.36481749]
[1771743178650,1.33563884,1976.5,1976.0,1.36481749]
[1771743184653,1.33563884,1976.5,1975.9,7.70439785]
[1771743184854,1.33176889,1976.3,1975.7,7.70439785]
[1771743188957,1.42403001,1976.1,1975.7,1.32836042]
[1771743195458,1.42403001,1976.1,1975.6,1.3279413]
[1771743198664,1.39988311,1976.4,1975.6,1.3279413]
[1771743198963,1.39988311,1976.2,1975.6,1.3279413]
[1771743201369,1.88925755,1976.1,1975.7,1.3279413]
[1771743201569,1.39988311,1976.1,1975.7,1.3279413]
[1771743214180,1.39988311,1976.1,1975.7,7.70397873]
[1771743214382,1.39988311,1976.1,1975.8,1.3279413]
[1771743215486,1.39988311,1976.4,1975.8,1.3279413]
[1771743215681,1.88961095,1976.3,1975.8,1.3279413]
[1771743215882,1.88961095,1976.2,1975.8,1.3279413]
[1771743216184,1.88961095,1976.1,1975.8,1.3279413]
[1771743216384,1.39988311,1976.1,1975.8,1.3279413]
[1771743221392,0.00386995,1976.5,1975.8,1.3279413]
[1771743221587,1.36352679,1976.3,1975.8,1.3279413]
[1771743221891,1.36352679,1976.1,1975.8,1.3279413]
[1771743225290,1.36352679,1976.4,1975.8,1.3279413]
[1771743225492,1.36352679,1976.2,1975.8,1.3279413]
[1771743225692,0.4898808,1976.1,1975.8,1.3279413]
[1771743225991,1.85340759,1976.1,1975.8,1.3279413]
[1771743226193,1.36352679,1976.1,1975.8,1.3279413]
[1771743227591,0.00386995,1976.5,1975.8,1.3279413]
[1771743227797,1.36352679,1976.3,1975.8,1.3279413]
[1771743228094,0.49001469,1976.4,1975.8,1.3279413]
[1771743228095,1.36352679,1976.1,1975.8,1.3279413]
[1771743231707,1.36352679,1976.1,1975.7,6.37603743]
[1771743231708,0.49004072,1976.0,1975.7,6.37603743]
[1771743231907,1.36352679,1976.1,1975.7,6.37603743]
[1771743232103,0.49005989,1976.0,1975.7,6.37603743]
[1771743232305,1.36352679,1975.9,1975.7,6.37603743]
[1771743234010,1.36352679,1975.9,1975.6,7.69066413]
[1771743239716,1.36352679,1975.9,1975.6,6.37603743]
[1771743240012,1.36352679,1975.9,1975.5,7.69066413]
[1771743240313,1.36352679,1975.9,1975.4,7.69066413]
[1771743242616,1.36352679,1975.9,1975.5,1.3146267]
[1771743244013,1.36352679,1976.3,1975.5,1.3146267]
[1771743244219,0.48941162,1976.2,1975.7,1.3146267]
[1771743244417,0.48941162,1976.1,1975.7,1.3146267]
[1771743244722,1.36352679,1976.3,1975.7,1.3146267]
[1771743254020,1.36352679,1976.3,1975.8,1.36347936]
[1771743256728,1.82992415,1976.2,1975.8,1.36347936]
[1771743256918,0.48570276,1976.1,1975.8,1.36347936]
[1771743257122,0.48570276,1976.0,1975.8,1.36347936]
[1771743257317,1.34422139,1976.2,1975.8,1.36347936]
[1771743257526,0.4856948,1976.1,1975.8,1.36347936]
[1771743257826,0.4856948,1976.0,1975.8,1.36347936]
[1771743258025,1.34422139,1976.2,1975.8,1.36347936]
[1771743258227,0.48568025,1976.1,1975.8,1.36347936]
[1771743258423,1.34422139,1976.2,1975.8,1.36347936]
[1771743258424,0.48568025,1976.0,1975.8,1.36347936]
[1771743258622,1.34422139,1976.2,1975.8,1.36347936]
[1771743258824,0.48569866,1976.1,1975.8,1.36347936]
[1771743259124,0.48569866,1976.0,1975.8,1.36347936]
[1771743259326,1.34422139,1976.2,1975.8,1.36347936]
[1771743259525,0.48572006,1976.1,1975.8,1.36347936]
[1771743259725,0.48572006,1976.0,1975.8,1.36347936]
[1771743259926,1.34422139,1976.2,1975.8,1.36347936]
[1771743260123,0.48572154,1976.1,1975.8,1.36347936]
[1771743260320,0.48572154,1976.0,1975.8,1.36347936]
[1771743260623,1.34422139,1976.1,1975.8,1.36347936]
[1771743260820,0.48574353,1976.0,1975.8,1.36347936]
[1771743261025,1.34422139,1976.1,1975.8,1.36347936]
[1771743261230,0.48574353,1976.0,1975.8,1.36347936]
[1771743261530,1.34422139,1976.1,1975.8,1.36347936]
[1771743261829,0.48577016,1976.0,1975.8,1.36347936]
[1771743262028,1.34422139,1976.1,1975.8,1.36347936]
[1771743262232,0.48577009,1976.0,1975.8,1.36347936]
[1771743262426,1.34422139,1976.4,1975.8,1.36347936]
[1771743262627,1.34422139,1976.2,1975.8,1.36347936]
[1771743262825,1.83000394,1976.1,1975.8,1.36347936]
[1771743263027,0.48578255,1976.0,1975.8,1.36347936]
[1771743263322,1.34422139,1976.1,1975.8,1.36347936]
[1771743263622,0.48579641,1976.0,1975.8,1.36347936]
[1771743263827,1.34422139,1976.1,1975.8,1.36347936]
[1771743264027,0.48578358,1976.0,1975.8,1.36347936]
[1771743264226,1.34422139,1976.1,1975.8,1.36347936]
[1771743264423,0.48579827,1976.0,1975.8,1.36347936]
[1771743264632,1.34422139,1976.1,1975.8,1.36347936]
[1771743264930,0.48579823,1976.0,1975.8,1.36347936]
[1771743265130,1.34422139,1976.1,1975.8,1.36347936]
[1771743265331,0.48581468,1976.0,1975.8,1.36347936]
[1771743265532,1.34422139,1976.1,1975.8,1.36347936]
[1771743265830,0.48581462,1976.0,1975.8,1.36347936]
[1771743266130,1.34422139,1976.1,1975.8,1.36347936]
[1771743266332,0.48582117,1976.0,1975.8,1.36347936]
[1771743266523,1.34422139,1976.1,1975.8,1.36347936]
[1771743266725,0.48583267,1976.0,1975.8,1.36347936]
[1771743266929,1.34422139,1976.1,1975.8,1.36347936]
[1771743267128,0.48583267,1976.0,1975.8,1.36347936]
[1771743267329,1.34422139,1976.1,1975.8,1.36347936]
[1771743267529,0.48585353,1976.0,1975.8,1.36347936]
[1771743267730,1.34422139,1976.1,1975.8,1.36347936]
[1771743267931,0.48585347,1976.0,1975.8,1.36347936]
[1771743268233,1.34422139,1976.1,1975.8,1.36347936]
[1771743268431,0.48587732,1976.0,1975.8,1.36347936]
[1771743268626,1.34422139,1976.1,1975.8,1.36347936]
[1771743268825,0.48587717,1976.0,1975.8,1.20941281]
[1771743269134,1.34422139,1976.1,1975.8,1.20941281]
[1771743269330,0.48590455,1976.0,1975.8,1.20941281]
[1771743269532,1.34422139,1976.1,1975.8,1.20941281]
[1771743269730,0.48590466,1976.0,1975.8,1.20941281]
[1771743270030,1.34422139,1976.1,1975.8,1.20941281]
[1771743270230,0.48590461,1976.0,1975.8,1.20941281]
[1771743270530,1.34422139,1976.1,1975.8,1.20941281]
[1771743270826,0.48590927,1976.0,1975.8,1.20941281]
[1771743271030,1.34422139,1976.1,1975.8,1.20941281]
[1771743271225,0.48590927,1976.0,1975.8,1.20941281]
[1771743271426,1.34422139,1976.1,1975.6,1.36347936]
[1771743271625,1.83016671,1976.0,1975.6,1.36347936]
[1771743271833,0.48594532,1975.9,1975.6,1.36347936]
[1771743278740,1.35590939,1976.1,1975.6,1.36347936]
[1771743278945,0.48607363,1976.0,1975.6,1.36347936]
[1771743279243,0.48607363,1975.9,1975.6,1.36347936]
[1771743279543,1.35590939,1976.1,1975.6,1.36347936]
[1771743279739,0.48607004,1976.0,1975.6,1.36347936]
[1771743280035,0.48607004,1975.9,1975.6,1.36347936]
[1771743280239,1.35590939,1976.1,1975.6,1.36347936]
[1771743280442,0.48606768,1976.0,1975.6,1.36347936]
[1771743280641,0.48606768,1975.9,1975.6,1.36347936]
[1771743280944,1.35590939,1976.1,1975.7,1.36768064]
[1771743281134,0.48606728,1976.0,1975.7,1.36768064]
[1771743281336,0.48606728,1975.9,1975.7,1.36768064]
[1771743281538,1.35590939,1976.1,1975.7,1.36768064]
[1771743281835,0.48606572,1976.0,1975.7,1.36768064]
[1771743282034,0.48606572,1975.9,1975.7,1.36768064]
[1771743282238,1.35590939,1976.1,1975.7,1.36768064]
[1771743282438,0.48606508,1976.0,1975.7,1.36768064]
[1771743282639,0.48606508,1975.9,1975.7,1.36768064]
[1771743282843,1.35590939,1976.1,1975.7,1.36768064]
[1771743283142,0.48606525,1976.0,1975.7,1.36768064]
[1771743283342,0.48606525,1975.9,1975.7,1.36768064]
[1771743283545,1.35590939,1976.1,1975.7,1.36768064]
[1771743283743,0.48606548,1976.0,1975.7,1.36768064]
[1771743283943,0.48606548,1975.9,1975.7,1.36768064]
[1771743284146,1.35590939,1976.1,1975.7,1.36768064]
[1771743284345,0.48606507,1976.0,1975.7,1.36768064]
[1771743284646,0.48606507,1975.9,1975.7,1.36768064]
[1771743284847,1.35590939,1976.1,1975.7,1.36768064]
[1771743285047,0.48607047,1976.0,1975.7,1.36768064]
[1771743285348,0.48607047,1975.9,1975.7,1.36768064]
[1771743285546,1.35590939,1976.1,1975.7,1.36768064]
[1771743285746,0.48607015,1976.0,1975.7,1.36768064]
[1771743285947,0.48607015,1975.9,1975.7,1.36768064]
[1771743286246,1.35590939,1976.1,1975.7,1.36768064]
[1771743286449,1.84197981,1976.0,1975.7,1.36768064]
[1771743286746,0.48607042,1975.9,1975.7,1.36768064]
[1771743286951,1.35590939,1976.0,1975.7,1.36768064]
[1771743287146,0.48606993,1975.9,1975.7,1.36768064]
[1771743287346,1.35590939,1976.0,1975.7,1.36768064]
[1771743287548,0.48607084,1975.9,1975.7,1.36768064]
[1771743287748,1.35590939,1976.0,1975.7,1.36768064]
[1771743288049,0.48607085,1975.9,1975.7,1.36768064]
[1771743288247,1.35590939,1976.0,1975.7,1.36768064]
[1771743288445,0.48607236,1975.9,1975.7,1.36768064]
[1771743288650,1.35590939,1976.0,1975.7,1.36768064]
[1771743288848,0.48606936,1975.9,1975.7,1.36768064]
[1771743289050,1.35590939,1976.0,1975.7,1.36768064]
[1771743289349,0.48606945,1975.9,1975.7,1.36768064]
[1771743289646,1.35590939,1976.0,1975.7,1.36768064]
[1771743299159,0.48613114,1975.9,1975.7,1.36768064]
[1771743299361,1.35590939,1976.0,1975.7,1.36768064]
[1771743299562,0.48613113,1975.9,1975.7,1.36768064]
[1771743299763,1.35590939,1976.0,1975.7,1.36768064]
[1771743299963,0.48613108,1975.9,1975.7,1.36768064]
[1771743300260,1.35590939,1976.0,1975.7,1.36768064]
[1771743300461,0.48613819,1975.9,1975.7,1.36768064]
[1771743300661,1.35590939,1976.0,1975.7,1.36768064]
[1771743300961,0.48613827,1975.9,1975.7,1.36768064]
[1771743301161,1.35590939,1976.0,1975.7,1.36768064]
[1771743301460,0.48614747,1975.9,1975.7,1.36768064]
[1771743301662,1.35590939,1976.0,1975.7,1.36768064]
[1771743301861,0.48614684,1975.9,1975.7,1.36768064]
[1771743302056,1.35590939,1976.0,1975.7,1.36768064]
[1771743302253,0.48614444,1975.9,1975.7,1.36768064]
[1771743302461,1.35590939,1976.0,1975.7,1.36768064]
[1771743302662,0.48614418,1975.9,1975.7,1.36768064]
[1771743302854,1.35590939,1976.0,1975.7,1.36768064]
[1771743303052,0.48614402,1975.9,1975.7,1.36768064]
[1771743303252,1.35590939,1976.0,1975.7,1.36768064]
[1771743303457,0.48612732,1975.9,1975.7,1.36768064]
[1771743303653,1.35590939,1976.0,1975.7,1.36768064]
[1771743303862,0.48612694,1975.9,1975.7,1.36768064]
[1771743304062,1.35590939,1976.0,1975.7,1.36768064]
[1771743304263,0.48612738,1975.9,1975.7,1.36768064]
[1771743304559,1.35590939,1976.0,1975.7,1.36768064]
[1771743304760,0.48612714,1975.9,1975.7,1.36768064]
[1771743304961,1.35590939,1976.0,1975.7,1.36768064]
[1771743305156,0.48612716,1975.9,1975.7,1.36768064]
[1771743305353,1.35590939,1976.0,1975.7,1.36768064]
[1771743305563,0.4861273,1975.9,1975.7,1.36768064]
[1771743305754,1.35590939,1976.0,1975.7,1.36768064]
[1771743305958,0.4861273,1975.9,1975.7,1.36768064]
[1771743306253,1.35590939,1976.0,1975.7,1.36768064]
[1771743306453,0.48612755,1975.9,1975.7,1.36768064]
[1771743306656,1.35590939,1976.0,1975.7,1.36768064]
[1771743306854,0.48612756,1975.9,1975.7,1.36768064]
[1771743307054,1.35590939,1976.0,1975.7,1.36768064]
[1771743307261,0.48612758,1975.9,1975.7,1.36768064]
[1771743307456,1.35590939,1976.0,1975.7,1.36768064]
[1771743307656,0.48612837,1975.9,1975.7,1.36768064]
[1771743307863,1.35590939,1976.0,1975.7,1.36768064]
[1771743308063,0.48612841,1975.9,1975.7,1.36768064]
[1771743308265,1.35590939,1976.0,1975.7,1.36768064]
[1771743308468,0.4861295,1975.9,1975.7,1.36768064]
[1771743308762,1.35590939,1976.0,1975.7,1.36768064]
[1771743308963,0.48612948,1975.9,1975.7,1.36768064]
[1771743309162,1.35590939,1976.0,1975.7,1.36768064]
[1771743309463,0.48614889,1975.9,1975.6,1.45004645]
[1771743309659,1.35590939,1976.0,1975.6,1.45004645]
[1771743309860,0.48615166,1975.9,1975.6,1.45004645]
[1771743310058,1.35590939,1976.0,1975.6,1.45004645]
[1771743310257,0.48615226,1975.9,1975.6,1.45004645]
[1771743310465,1.35590939,1976.0,1975.6,1.45004645]
[1771743310762,0.48615497,1975.9,1975.6,1.45004645]
[1771743310962,1.35590939,1976.0,1975.6,1.45004645]
[1771743311165,0.48615544,1975.9,1975.6,1.45004645]
[1771743311356,1.35590939,1976.0,1975.6,1.45004645]
[1771743311558,0.48615757,1975.9,1975.6,1.45004645]
[1771743311756,1.35590939,1976.0,1975.6,1.45004645]
[1771743311959,0.48615746,1975.9,1975.6,1.45004645]
[1771743312158,1.35590939,1976.0,1975.6,1.45004645]
[1771743312364,0.48615904,1975.9,1975.6,1.45004645]
[1771743312558,1.35590939,1976.0,1975.6,1.45004645]
[1771743312760,0.48615985,1975.9,1975.6,1.45004645]
[1771743312961,1.35590939,1976.0,1975.6,1.45004645]
[1771743313162,0.48615827,1975.9,1975.6,1.45004645]
[1771743313362,1.35590939,1976.0,1975.6,1.45004645]
[1771743313562,0.48616087,1975.9,1975.6,1.45004645]
[1771743313759,1.35590939,1976.0,1975.6,1.45004645]
[1771743313963,0.4861609,1975.9,1975.6,1.45004645]
[1771743314167,1.35590939,1976.0,1975.6,1.45004645]
[1771743314469,0.48616355,1975.9,1975.6,1.45004645]
[1771743314765,1.35590939,1976.0,1975.6,1.45004645]
[1771743314966,0.48616431,1975.9,1975.6,1.45004645]
[1771743315158,1.35590939,1976.0,1975.6,1.45004645]
[1771743315360,0.48616759,1975.9,1975.6,1.45004645]
[1771743315559,1.35590939,1976.0,1975.6,1.45004645]
[1771743315769,0.48616823,1975.9,1975.6,1.45004645]
[1771743315970,1.35590939,1976.0,1975.6,1.45004645]
[1771743316269,0.48616817,1975.9,1975.6,1.45004645]
[1771743316468,1.35590939,1976.0,1975.6,1.45004645]
[1771743316668,0.48617255,1975.9,1975.6,1.45004645]
[1771743316867,1.35590939,1976.0,1975.6,1.45004645]
[1771743317067,0.48617257,1975.9,1975.6,1.45004645]
[1771743317267,1.35590939,1976.0,1975.6,1.45004645]
[1771743317566,0.48617854,1975.9,1975.6,1.45004645]
[1771743317866,1.35590939,1976.0,1975.6,1.45004645]
[1771743318066,0.4861788,1975.9,1975.6,1.45004645]
[1771743318269,1.35590939,1976.0,1975.6,1.45004645]
[1771743318468,0.48618678,1975.9,1975.6,1.45004645]
[1771743318668,1.35590939,1976.0,1975.6,1.45004645]
[1771743318968,0.48618673,1975.9,1975.6,1.45004645]
[1771743319169,1.35590939,1976.0,1975.6,1.45004645]
[1771743319467,0.48618848,1975.9,1975.6,1.45004645]
[1771743319668,1.35590939,1976.0,1975.6,1.45004645]
[1771743319868,0.48618822,1975.9,1975.6,1.45004645]
[1771743320062,1.35590939,1976.0,1975.6,1.45004645]
[1771743320265,0.48620543,1975.9,1975.6,1.45004645]
[1771743320460,1.35590939,1976.0,1975.6,1.45004645]
[1771743320663,0.4862052,1975.9,1975.6,1.45004645]
[1771743320868,1.35590939,1976.0,1975.6,1.45004645]
[1771743321068,0.48620518,1975.9,1975.6,1.45004645]
[1771743321367,1.35590939,1976.0,1975.6,1.45004645]
[1771743321568,0.48620512,1975.9,1975.6,1.45004645]
[1771743321864,1.35590939,1976.0,1975.6,1.45004645]
[1771743322069,0.48623987,1975.9,1975.6,1.45004645]
[1771743322362,1.35590939,1976.0,1975.6,1.45004645]
[1771743322567,0.48624327,1975.9,1975.6,1.45004645]
[1771743322864,1.35590939,1976.0,1975.6,1.45004645]
[1771743323067,0.48624322,1975.9,1975.6,1.45004645]
[1771743323268,1.35590939,1976.0,1975.6,1.45004645]
[1771743323473,1.39970782,1975.8,1975.5,6.37603743]
[1771743323772,1.39970782,1975.8,1975.5,7.82639393]
[1771743324975,1.39970782,1975.9,1975.6,1.4503565]
[1771743325173,1.39970782,1976.3,1975.6,1.4503565]
[1771743325376,1.39970782,1976.1,1975.6,1.4503565]
[1771743325570,1.88587564,1976.0,1975.6,1.4503565]
[1771743325770,0.48616782,1975.9,1975.6,1.4503565]
[1771743325971,1.39970782,1976.0,1975.6,1.4503565]
[1771743326170,0.4861396,1975.9,1975.6,1.4503565]
[1771743326374,1.39970782,1976.0,1975.6,1.4503565]
[1771743326574,0.48611893,1975.9,1975.6,1.4503565]
[1771743326873,1.39970782,1976.0,1975.6,1.4503565]
[1771743327075,0.48612211,1975.9,1975.6,1.4503565]
[1771743327275,1.39970782,1976.0,1975.6,1.4503565]
[1771743327475,0.48611217,1975.9,1975.6,1.4503565]
[1771743327675,1.39970782,1976.0,1975.6,1.4503565]
[1771743327877,0.4861044,1975.9,1975.6,1.4503565]
[1771743328078,1.39970782,1976.0,1975.6,1.4503565]
[1771743328277,0.48618488,1975.9,1975.6,1.4503565]
[1771743328577,1.39970782,1976.0,1975.6,1.4503565]
[1771743328774,0.48617514,1975.9,1975.6,1.4503565]
[1771743328976,1.39970782,1976.0,1975.6,1.4503565]
[1771743329176,0.48617538,1975.9,1975.6,1.4503565]
[1771743329476,1.39970782,1976.1,1975.6,1.4503565]
[1771743329675,0.48618071,1976.0,1975.6,1.4503565]
[1771743329874,0.48618071,1975.9,1975.6,1.4503565]
[1771743330076,1.39970782,1976.1,1975.6,1.4503565]
[1771743330276,0.486181,1976.0,1975.6,1.4503565]
[1771743330579,0.486181,1975.9,1975.6,1.4503565]
[1771743330780,1.39970782,1976.1,1975.6,1.4503565]
[1771743330981,0.48618383,1976.0,1975.6,1.4503565]
[1771743331180,0.48618383,1975.9,1975.6,1.4503565]
[1771743331380,1.39970782,1976.1,1975.6,1.4503565]
[1771743331582,0.48617986,1976.0,1975.6,1.4503565]
[1771743331881,0.48617986,1975.9,1975.6,1.4503565]
[1771743332081,1.39970782,1976.1,1975.6,1.4503565]
[1771743332280,0.48618188,1976.0,1975.6,1.4503565]
[1771743332583,0.48618188,1975.9,1975.6,1.4503565]
[1771743332884,1.39970782,1976.1,1975.6,1.4503565]
[1771743333081,0.48617881,1976.0,1975.6,1.4503565]
[1771743333378,0.48617881,1975.9,1975.6,1.4503565]
[1771743333578,1.39970782,1976.1,1975.6,1.4503565]
[1771743333772,0.48622924,1976.0,1975.6,1.4503565]
[1771743333973,0.48622924,1975.9,1975.6,1.4503565]
[1771743334178,1.39970782,1976.1,1975.6,1.4503565]
[1771743334379,0.48633702,1976.0,1975.6,1.4503565]
[1771743334578,0.48633702,1975.9,1975.6,1.4503565]
[1771743334775,1.39970782,1976.1,1975.6,1.4503565]
[1771743334976,0.48633579,1976.0,1975.6,1.4503565]
[1771743335176,0.48633579,1975.9,1975.6,1.4503565]
[1771743335375,1.39970782,1976.1,1975.6,1.4503565]
[1771743335576,0.48633541,1976.0,1975.6,1.4503565]
[1771743335781,0.48633541,1975.9,1975.6,1.4503565]
[1771743335985,1.39970782,1976.1,1975.6,1.4503565]
[1771743336178,0.48633541,1976.0,1975.6,1.4503565]
[1771743336376,0.48633541,1975.9,1975.6,1.4503565]
[1771743336576,1.39970782,1976.1,1975.6,1.4503565]
[1771743336782,0.48629878,1976.0,1975.6,1.4503565]
[1771743336977,0.48629878,1975.9,1975.6,1.4503565]
[1771743337186,1.39970782,1976.1,1975.6,1.4503565]
[1771743337388,1.88600475,1976.0,1975.6,1.4503565]
[1771743337586,0.48629693,1975.9,1975.6,1.4503565]
[1771743342095,1.44511985,1976.1,1975.6,1.4503565]
[1771743342293,0.48628394,1976.0,1975.6,1.4503565]
[1771743342492,0.48628394,1975.9,1975.6,1.4503565]
[1771743342693,1.44511985,1976.1,1975.6,1.4503565]
[1771743342894,1.93140701,1976.0,1975.6,1.4503565]
[1771743343194,0.48628716,1975.9,1975.6,1.4503565]
[1771743343393,1.44511985,1976.0,1975.6,1.4503565]
[1771743343693,0.48629108,1975.9,1975.6,1.4503565]
[1771743343892,1.44511985,1976.0,1975.6,1.4503565]
[1771743344093,0.48635088,1975.9,1975.6,1.4503565]
[1771743344395,1.44511985,1976.0,1975.6,1.4503565]
[1771743344589,0.48630534,1975.9,1975.6,1.4503565]
[1771743344891,1.44511985,1975.9,1975.6,1.4503565]
[1771743360612,1.44511985,1976.2,1975.6,1.4503565]
[1771743360811,1.44511985,1976.0,1975.6,1.4503565]
[1771743361011,0.48639955,1975.9,1975.6,1.4503565]
[1771743361214,1.44511985,1976.0,1975.6,1.4503565]
[1771743361513,0.48639953,1975.9,1975.6,1.4503565]
[1771743361713,1.44511985,1976.0,1975.6,1.4503565]
[1771743361914,1.93151944,1975.9,1975.6,1.4503565]